Cogmind - Beta 17 @@@ ROGUE MODE // 2026.07.03 @ 15:47:22 Player: aperiodic Result: Destroyed by SM-E44(R) with Subdweller Laser Performance ------------- Evolutions (0) 0 Regions Visited (2) 400 Robots Destroyed (17) 85 Value Destroyed (320) 320 Prototype IDs (6) 120 Alien Tech Used (0) 0 Bonus (0) 0 TOTAL SCORE: 925 Bonus ------- None Cogmind --------- Core Integrity 0/250 Matter 86/300 Energy 200/200 System Corruption 0% Temperature Cool (6) Movement Core (450) Ox8 Location -10/Subcaves Parts ------- > --- POWER (1) -------- Subdweller Power Source > --- PROPULSION (2) --- (None) > --- UTILITY (2) ------ Large Storage Unit > --- WEAPON (2) ------- Light Assault Rifle > --- INVENTORY (15) --- Improved Ion Engine Light Treads Light Treads Light Treads Light Treads Wheel Compact Wheel Compact Wheel Medium Storage Unit Structural Scanner Seismic Detector Small Laser Mining Laser Peak State ------------ > --- POWER ------------ Subdweller Power Source > --- PROPULSION ------- Light Treads Light Treads > --- UTILITY ---------- Large Storage Unit Seismic Detector > --- WEAPON ----------- Assault Rifle Battle Rifle > --- INVENTORY -------- Improved Ion Engine Light Treads Light Treads Light Treads Light Treads Wheel Compact Wheel Compact Wheel Medium Storage Unit Structural Scanner Light Armor Plating Small Laser Light Assault Rifle Mining Laser [Rating: 10] Favorites ----------- Power Improved Ion Engine Engine Improved Ion Engine Propulsion Light Treads Treads Light Treads Wheel Compact Wheel Utility Seismic Detector Device Seismic Detector Storage Large Storage Unit Protection Light Armor Plating Weapon Assault Rifle Energy Gun Small Laser Ballistic Gun Assault Rifle Special Weapon Mining Laser Build | -11 -10 -10 ------- Run | Yrd Mat Sub Slots Evolved . | . . . Power . | . . . Propulsion . | . . . Utility . | . . . Weapon . | . . . Parts Attached 24 | 8 11 5 Power 3 | 1 1 1 Engine 3 | 1 1 1 Core . | . . . Reactor . | . . . Propulsion 7 | 2 5 . Treads 4 | . 4 . Leg . | . . . Wheel 3 | 2 1 . Hover . | . . . Flight . | . . . Utility 8 | 3 2 3 Device 4 | 2 1 1 Storage 2 | 1 1 . Processor . | . . . Hackware . | . . . Protection 2 | . . 2 Artifact . | . . . Weapon 6 | 2 3 1 Energy Gun 1 | 1 . . Energy Cannon . | . . . Ballistic Gun 4 | 1 2 1 Ballistic Cannon . | . . . Launcher . | . . . Special Weapon 1 | . 1 . Impact Weapon . | . . . Slashing Weapon . | . . . Piercing Weapon . | . . . Special Melee Weapon . | . . . Unidentified Prototypes . | . . . Parts Lost 5 | . . 5 Power . | . . . Propulsion 2 | . . 2 Utility 1 | . . 1 Weapon 2 | . . 2 Highest Loss Streak 5 | . . 5 To Critical Strikes . | . . . Average Backups 12 | 3 11 14 Power . | . 1 1 Propulsion 6 | 1 5 7 Utility 2 | . 2 3 Weapon 2 | . 2 2 Tool/Special . | . . . Unused Backups 7 | . 3 4 Power 2 | . 1 1 Propulsion 3 | . 1 2 Utility 1 | . . 1 Weapon 1 | . 1 . Tool/Special . | . . . Average Slot Usage (%) 99 | . 99 98 Engine 14 | . 14 14 Treads 21 | . 20 22 Wheel 6 | . 7 5 Device 13 | . 14 11 Storage 14 | . 14 14 Energy Gun 5 | . 9 . Ballistic Gun 20 | . 17 26 Peak Build Rating 10 | 9 9 10 Average Rating 8 | 5 8 9 On Entrance 5 | . 7 9 Avg Prop Armor Cover (%) 13 | . . 13 Naked Turns . | . . . Heaviest Build 31 | 14 31 31 Greatest Support 40 | 32 40 40 Greatest Overweight (x) 1 | . 1 1 Average Overweight (x) . | . . . Largest Inventory Capacity 15 | 8 15 15 Average Capacity 13 | 7 13 15 Most Carried 15 | 7 15 15 Average Carried 12 | 3 11 14 Final Capacity 15 | 8 15 15 Final Carried 15 | 7 15 13 Class Distribution -------------------- 100% | Mutant Dominant Class ---------------- Mutant | -10/Materials Mutant | -10/Subcaves Resources | -11 -10 -10 ----------- Run | Yrd Mat Sub Matter Collected 616 | 304 216 96 Remotely . | . . . Salvage Created 481 | 108 314 59 Parts 36 | 7 23 6 Haulers Intercepted 1 | . 1 . Recyclers Shooed . | . . . Parts Field Recycled . | . . . Retrieved Matter . | . . . Parts Self-Destructed 5 | . . 5 Prevented . | . . . Parts Restored . | . . . Kills | -11 -10 -10 ------- Run | Yrd Mat Sub Combat Hostiles Destroyed 10 | . 8 2 Guns 10 | . 8 2 Classes Destroyed 8 | 2 4 2 Tunneler 2 | 2 . . Hauler 1 | . 1 . Recycler 1 | 1 . . Watcher 3 | . 3 . Swarmer 5 | . 5 . Grunt 3 | . 3 . Sentry 1 | . . 1 Subdweller 1 | . . 1 Best Kill Streak 4 | 3 4 1 Combat Bots Only 4 | . 4 1 Max Kills in Single Turn 1 | 1 1 1 Gunslinging . | . . . Exploded . | . . . Melee . | . . . Uniques/NPCs Destroyed . | . . . Combat | -11 -10 -10 -------- Run | Yrd Mat Sub Hostile Shots Fired 101 | . 41 60 Missed 31 | . 15 16 Hits 70 | . 26 44 Projectile 70 | . 26 44 Critical Strikes 1 | . . 1 Damage Taken 1194 | . 257 937 Core 269 | . 58 211 Absorbed by Shields . | . . . Regen/Repaired (Parts) 41 | . 41 . Core Remaining (%) 100 | 100 . . Volleys Fired 79 | 8 46 25 Largest 2 | 2 2 2 Hottest 100 | 60 100 100 Shots Fired 143 | 16 85 42 Gun 128 | 16 78 34 Cannon . | . . . Launcher . | . . . Special 15 | . 7 8 Kinetic 88 | 8 46 34 Thermal 55 | 8 39 8 Explosive . | . . . Electromagnetic . | . . . Robot Hit Streak 21 | 7 8 21 Robot Miss Streak 6 | 2 6 1 Penetration Max . | . . . Secondary Targets . | . . . Shots Hit Robots 89 | 13 45 31 Core Hits 29 | 4 18 7 Critical Kills . | . . . Critical Parts Destroyed 1 | . 1 . Critical Strikes 1 | . 1 . Destroy 1 | . 1 . Melee Attacks . | . . . Impact . | . . . Slashing . | . . . Piercing . | . . . Sneak Attacks . | . . . Combat Hostiles . | . . . Follow-up Attacks . | . . . Damage Inflicted 1027 | 151 515 361 Guns 1025 | 151 513 361 Cannons . | . . . Explosions . | . . . Melee . | . . . Ramming 2 | . 2 . Kinetic 736 | 82 293 361 Thermal 289 | 69 220 . Explosive . | . . . Electromagnetic . | . . . Impact . | . . . Slashing . | . . . Piercing . | . . . Highest Corruption . | . . . Average Corruption . | . . . Corruption Purged . | . . . Corruption Blocked . | . . . Overload Shots . | . . . Overflow Damage . | . . . Projectiles . | . . . Explosions . | . . . Melee . | . . . Knockbacks . | . . . Impact . | . . . Kinetic . | . . . Secondary . | . . . Self-Inflicted Damage . | . . . Shots . | . . . Rammed 1 | . 1 . Targets Rammed 1 | . 1 . Kicked . | . . . Crushed . | . . . Highest Temperature 72 | . 72 . Average Temperature 14 | . 14 . Received Heat Transfer 339 | . 93 246 Siege Activations . | . . . Martial Activations . | . . . Shielding Activations . | . . . Robots Disrupted . | . . . Combat Hostiles . | . . . Robots Corrupted . | . . . Combat Hostiles . | . . . Parts Fried . | . . . Impact Corruptions . | . . . Robots Melted . | . . . Combat Hostiles . | . . . Parts Melted 1 | . 1 . Heat Transferred 650 | 150 500 . Parts Sabotaged . | . . . Parts Stolen . | . . . Parts Stripped . | . . . Power Chain Reactions . | . . . Alert | -11 -10 -10 ------- Run | Yrd Mat Sub Maximum Alert Level . | . . . Low Security (%) 100 | 100 100 . Level 1 . | . . . Level 2 . | . . . Level 3 . | . . . Level 4 . | . . . Level 5 . | . . . High Security . | . . . Max Security . | . . . Peak Influence 105 | 5 105 . Initial . | . . . Average 11 | 1 12 . Influence Increases 346 | 15 311 20 Destroy 0b10 Robot/C 180 | . 160 20 Destroy 0b10 Robot/NC 35 | 15 20 . Destroy Leader 58 | . 58 . Successful Hack 36 | . 36 . Destroy Structure 7 | . 7 . Lose Combat Pursuer 30 | . 30 . Influence Decreases 346 | 15 311 20 Time Decay 346 | 15 311 20 Squads Dispatched 3 | . 3 . Investigation 2 | . 2 . Extermination . | . . . Reinforcement 1 | . 1 . Assault . | . . . Garrison . | . . . Intercept . | . . . Searches Triggered . | . . . Construction Impeded . | . . . Haulers Reinforced . | . . . Active Scanning Responses . | . . . Cargo Convoy Interrupts . | . . . Stealth | -11 -10 -10 --------- Run | Yrd Mat Sub Distress Signals 1 | . 1 . Communications Jammed . | . . . Distress Signals . | . . . Times Spotted 25 | . 20 5 Peak Tracking Total 6 | . 6 3 Tactical Retreats 3 | . 2 1 Traps | -11 -10 -10 ------- Run | Yrd Mat Sub Traps Triggered 1 | . 1 . Indirectly . | . . . Trap Hack Attempts . | . . . Triggered . | . . . Disarmed . | . . . Reprogrammed . | . . . Reused . | . . . Traps Extracted . | . . . Installed . | . . . Triggered . | . . . Machines | -11 -10 -10 ---------- Run | Yrd Mat Sub Machines Disabled . | . . . Max in Single Turn . | . . . Machines Repaired . | . . . Machines Dismantled . | . . . Machines Sabotaged . | . . . Overloaded Fab Kills . | . . . Hacking | -11 -10 -10 --------- Run | Yrd Mat Sub Machines Accessed 8 | . 8 . Terminals 7 | . 7 . Fabricators . | . . . Repair Stations 1 | . 1 . Recycling Units . | . . . Scanalyzers . | . . . Garrison Access . | . . . Total Hacks 34 | . 34 . Successful 22 | . 22 . Failed 12 | . 12 . Catastrophic . | . . . Database Lockouts . | . . . Manual 24 | . 24 . Terminals 31 | . 31 . Fabricators . | . . . Repair Stations 3 | . 3 . Recycling Units . | . . . Scanalyzers . | . . . Garrison Access . | . . . Terminal Hacks 9 | . 9 . Prototype ID Bank 5 | . 5 . Terminal Index 1 | . 1 . Locate Traps 2 | . 2 . Zone Layout 1 | . 1 . Fabricator Hacks . | . . . Repair Station Hacks 3 | . 3 . Scan Component 2 | . 2 . Repair 1 | . 1 . Recycling Unit Hacks . | . . . Scanalyzer . | . . . Garrison Access Hacks . | . . . Unauthorized Hacks 10 | . 10 . Terminals 10 | . 10 . Botnet 4 | . 4 . Operators 1 | . 1 . Skim 5 | . 5 . Fabricators . | . . . Repair Stations . | . . . Recycling Units . | . . . Scanalyzers . | . . . Garrison Access . | . . . Data Cores Recovered . | . . . Used . | . . . Hacking Detections 8 | . 8 . Full Trace Events 1 | . 1 . Feedback Events . | . . . Feedback Blocked . | . . . Robot Schematics Acquired . | . . . Robots Built . | . . . Authchips . | . . . Time . | . . . Total Robot Build Rating . | . . . Part Schematics Acquired . | . . . Parts Built . | . . . Authchips . | . . . Time . | . . . Total Part Build Rating . | . . . Part Studies Acquired . | . . . Parts Repaired 1 | . 1 . Time 26 | . 26 . Parts Recycled . | . . . Recycled Matter . | . . . Retrieved Matter . | . . . Retrieved Components . | . . . Parts Scanalyzed . | . . . Part Schematics Acquired . | . . . Parts Damaged . | . . . Bothacking | -11 -10 -10 ------------ Run | Yrd Mat Sub Used RIF Installer . | . . . Robots Hacked . | . . . Non-combat . | . . . Combat . | . . . Robot Hacks Applied . | . . . Relay Couplers Released . | . . . Fabnet Peak Effective % . | . . . Robots Rewired . | . . . Allies Hacked . | . . . Hacks Repelled . | . . . Allies | -11 -10 -10 -------- Run | Yrd Mat Sub Total Allies . | . . . Largest Group . | . . . Highest-Rated Group . | . . . Highest-Rated Ally . | . . . Total Orders . | . . . Ally Attacks . | . . . Total Damage . | . . . Kills . | . . . Allies Corrupted . | . . . Allies Melted . | . . . Intel | -11 -10 -10 ------- Run | Yrd Mat Sub Active Infowar (turns) 2491 | 21 1647 823 Terrain 1 | 1 . . Structural 61 | . . 61 Seismic 2429 | 20 1647 762 Robot Analysis Total . | . . . Derelict Logs Recovered . | . . . Drone Launches . | . . . Drone Recoveries . | . . . Exploration | -11 -10 -10 ------------- Run | Yrd Mat Sub Turns Passed 2718 | 107 1647 964 Spaces Moved 1113 | 60 675 378 Core 1 | 1 . . Treads 726 | . 508 218 Legs . | . . . Wheels 386 | 59 167 160 Hover . | . . . Flight . | . . . Fastest Speed 50 | 50 90 105 Average Speed 139 | 99 144 137 Slowest Speed 160 | 100 160 160 Overloaded Moves . | . . . Propulsion Burnouts . | . . . Robots Hopped . | . . . Potential Cave-ins . | . . . Cave-ins Triggered . | . . . Exploration Rate (%) 44 | 5 93 34 Regions Visited 2 Branch Regions 1 Pre-discovered Areas . | . . . Known Exits Taken 1 | . 1 . Unknown Exits Taken 1 | 1 . . Scrap Searched . | . . . Spaces Dug 6 | . 6 . Terrain Destroyed 7 | . 7 . Melee . | . . . Projectile 7 | . 7 . AOE . | . . . Terrain Rammed . | . . . Walls Destroyed . | . . . Machines Disabled . | . . . Actions | -11 -10 -10 --------- Run | Yrd Mat Sub Total 2099 | 88 1249 762 Wait 832 | 5 493 334 Move 1111 | 59 674 378 Hop . | . . . Pick Up 19 | 7 10 2 Fast Attach 8 | 8 . . Attach 3 | . 1 2 Detach . | . . . Swap 34 | . 17 17 Drop 12 | 1 7 4 Fire 79 | 8 46 25 Melee . | . . . Ram . | . . . Kick . | . . . Crush 1 | . 1 . Escape Stasis . | . . . Rewire . | . . . Trap . | . . . Miscellaneous . | . . . Route ------- -11/Scrapyard -10/Materials (discovered 5 exits: [*Mat x3] / *Min / *Sub) -10/Subcaves (discovered 2 exits: Mat / Rec) History --------- Turn | Location | Event 11 | -11/Scrapyard | Discovered new exit (range 16) 108 | -11/Scrapyard | Entered Materials 307 | -10/Materials | Build established: Mutant 744 | -10/Materials | Discovered new exit (range 5) 1160 | -10/Materials | Discovered new exit (range 5) 1313 | -10/Materials | Repaired Assault Rifle 1332 | -10/Materials | Discovered new exit (range 10) 1431 | -10/Materials | Learned location of 2 exits from Subcaves 1484 | -10/Materials | Learned 2 Storage zone layouts 1494 | -10/Materials | Learned Recycling recycling unit intel 1504 | -10/Materials | Learned 4 Subcaves zone layouts 1525 | -10/Materials | Identified exit to Subcaves 1525 | -10/Materials | Identified exit to Mines 1525 | -10/Materials | Learned location of 1 exit from Materials 1755 | -10/Materials | Entered Subcaves 1756 | -10/Subcaves | Identified exit to Materials 1756 | -10/Subcaves | Identified exit to Recycling 1799 | -10/Subcaves | Shifting Twisted Machinery released Enh. Flamer 1958 | -10/Subcaves | Core integrity fell below 50% 2046 | -10/Subcaves | A swath of the cavern ceiling suddenly collapsed 2695 | -10/Subcaves | A Subdweller sparked back to life 2695 | -10/Subcaves | A Subdweller sparked back to life 2695 | -10/Subcaves | A Subdweller sparked back to life 2712 | -10/Subcaves | Core integrity fell below 20% 2719 | -10/Subcaves | Destroyed by SM-E44(R) with Subdweller Laser Last Messages --------------- collapses. 02105_ CQ-JKS(R) destroyed. 02108_ Dropped Lgt. Armor Plating. 02110_ Dropped Lgt. Assault Rifle. 02110_ Acquired Battle Rifle. 02110_ Acquired 5 matter. 02113_ Dropped Lgt. Assault Rifle. 02115_ Acquired Lgt. Assault Rifle. 02118_ Dropped Imp. Ion Engine. 02695_ SM-E44(R) creaks and sparks as it begins to move. 02695_ LX-1KT(R) creaks and sparks as it begins to move. 02695_ Q3-J74(R) creaks and sparks as it begins to move. 02707_ Lgt. Treads destroyed. 02709_ Battle Rifle destroyed. 02709_ Lgt. Armor Plating destroyed. 02713_ Lgt. Treads destroyed. 02717_ Assault Rifle destroyed. Map ----- +----------------------------------------------------+ | ????????????????????????????????## # #####??? | | ???????????????????????????????## ## ##????? | | ???????????????????????????????# # # #????? | | ??????????????????????####?????# #????? | | ??????????????????????# ##????# #????? | | ??????????????????????# ##???# ### ##??## | | ??????????????????????# ##??###??### #### | | ??????????????????????# #?????????## | | ???????????????????????# #?????????## | | ???????????????????????# ###??????## | | ??????????????????????## #??????# | | ??????????????????##### #??##### | | ??????????????????# ## #### ## | | ??????????????????# ### ## | | ??????????????????#######?## | | ???????????????????????????## | | ????????????????????????????## ## ### ## | | ????????????????????????###### ## ##?# ##? | | ???????????????# ####### ## ##?# #?? | | ??????????????# #? #?? | | ?????????????? ### #?? | | ?????????????? ## ### #?? #? | | ??????????????# #??# ## #??# | | ????????????????## ??##; ####??? | | ?????????????????## ??## #?????? ?? | | ??????????????????? ????#@ # #???????????? | | ???????????????????????#; #??????????? | | ???????????????????????##RR R ### #??????????? | | ????????????????????????# #??######??????????? | | ????????????????????????# < #??????????????????? | | ????????????????????????#######??????????????????? | | ?????????????????????????????????????????????????? | | ?????????????????????????????????????????????????? | | ?????????????????????????????????????????????????? | | ?????????????????????????????????????????????????? | | ?????????????????????????????????????????????????? | | ?????????????????????????????????????????????????? | | ?????????????????????????????????????????????????? | | ?????????????????????????????????????????????????? | | ?????????????????????????????????????????????????? | | ?????????????????????????????????????????????????? | | ?????????????????????????????????????????????????? | | ?????????????????????????????????????????????????? | | | | | | | | | | | | | | | +----------------------------------------------------+ Best States ------------- Heat Dissipation 25 Energy Generation 15 Energy Capacity 265 Matter Stores 300 Matter Capacity 300 Sight Range 16 Terrain Scan Density 10 Armor Coverage 150 Evasion (%) 42 Recoil Reduction 2 Item Schematics ----------------- None Robot Schematics ------------------ None Fabricated ------------ Nothing Repaired ---------- Assault Rifle | 59% | -10/Materials Studied --------- None Alien Tech Used ----------------- None Achievements -------------- None Challenges ------------ None Game ------ Seed PiercingNodeDeflector Manual? 0 Play Time 00:26:17 Cumulative 692.3 hours Start 2026.07.03 @ 15:18:29 End 2026.07.03 @ 15:47:22 Sessions 1 Manual Loads 0 Difficulty Rogue Special Mode None Game No. 233 Rogue 229 Adventurer 4 Explorer 0 Win Type - Total 21 Types 9/2/6/0/0/0/2/2/0/0 Lore% 57 Gallery% 71 Achievement% 48 Wizard Run 0 Options --------- Layout 1 ASCII 0 Keyboard 0 Movement Arrows Keybinds 0 Fullscreen 1 Font 40/SmallcapsGlow Map View 50x40 Zoom Use 0% Tactical HUD 1 Map Filters NONE Filters NONE Steam 1 RUN: 7f67f29d-f77d-400b-b8be-a873487d5fb3